fUSD/lending_fUSD_20240224
["ID","MTS","AMOUNT","RATE_DAILY","PERIOD"]
[315040876,1708758633356,-5000.0,0.000269,2]
[315040877,1708758633365,-160.73505657,0.000269,2]
[315040878,1708758633375,-537.18243618,0.000269,2]
[315040879,1708758633384,-716.57104301,0.000269,2]
[315040880,1708758633393,-150.0,0.00026909,2]
[315040881,1708758633403,-150.0,0.00026923,2]
[315040882,1708758633412,-157.5,0.00026968,2]
[315040883,1708758633421,-331.78836325,0.0002699,2]
[315040884,1708758633430,-1002.6138,0.00026997,2]
[315040885,1708758633439,-342.39050248,0.00026999,10]
[315040886,1708758633449,-342.39050248,0.00026999,10]
[315040887,1708758633458,-342.39050248,0.00026999,10]
[315040888,1708758633467,-800.0,0.00027,3]
[315040889,1708758633476,-182893.08814965,0.00027,2]
[315040890,1708758633486,-145942.0,0.00027,2]
[315040891,1708758633495,-284.44497454,0.00027,2]
[315040892,1708758633505,-639279.0,0.00027,2]
[315040893,1708758633515,-5185.0,0.00027,2]
[315040894,1708758633524,-160.73505654,0.00027,2]
[315040895,1708758633533,-570.55,0.00027005,2]
[315040896,1708758633542,-13879.69741243,0.0002705,2]
[315040897,1708758633554,-537.18243617,0.0002705,2]
[315040898,1708758633564,-177.78,0.00027096,2]
[315040899,1708758633573,-160.73505654,0.000271,2]
[315040900,1708758633583,-150.0,0.00027121,2]
[315040901,1708758633592,-1500.0,0.00027125,2]
[315040902,1708758633602,-302.30283942,0.00027127,2]
[315040903,1708758633611,-254.948574,0.00027129,2]
[315040904,1708758633621,-800.0,0.00027129,2]
[315040905,1708758633630,-200.0,0.00027129,2]
[315040906,1708758633639,-194.66643057,0.00027136,2]
[315040907,1708758633648,-150.0,0.00027136,2]
[315040908,1708758633658,-150.0,0.00027138,2]
[315040909,1708758633668,-1500.0,0.0002714,2]
[315040910,1708758633677,-150.0,0.0002714,2]
[315040911,1708758633687,-1500.0,0.00027141,2]
[315040912,1708758633696,-150.0,0.00027145,2]
[315040913,1708758633706,-150.0,0.00027149,2]
[315040914,1708758633715,-150.0,0.00027152,2]
[315040915,1708758633724,-150.0,0.00027152,2]
[315040916,1708758633734,-150.0,0.00027162,2]
[315040917,1708758633743,-162.16450436,0.00027167,3]
[315040918,1708758633753,-150.0,0.00027173,2]
[315040919,1708758633762,-150.0,0.00027183,2]
[315040920,1708758633771,-150.0,0.00027183,2]
[315040921,1708758633780,-1500.0,0.00027186,2]
[315040922,1708758633790,-150.0,0.00027186,2]
[315040923,1708758633799,-150.0,0.00027193,2]
[315040924,1708758633808,-300.0,0.00027196,2]
[315040925,1708758633820,-342.39050247,0.00027196,10]
[315040926,1708758633834,-1000.0,0.00027197,2]
[315040927,1708758633843,-26191.1185,0.00027197,2]
[315040928,1708758633853,-219.14461326,0.00027198,2]
[315040929,1708758633862,-286.78837855,0.00027198,2]
[315040930,1708758633871,-34464.15755639,0.000272,2]
[315040931,1708758633880,-86977.93532664,0.000272,2]
[315040932,1708758633889,-150.0,0.000272,2]
[315040933,1708758633899,-160.73505654,0.000272,2]
[315040934,1708758633908,-537.18243617,0.000272,2]
[315040935,1708758633917,-150.0,0.00027201,2]
[315040936,1708758633926,-150.0,0.00027207,2]
[315040937,1708758633935,-1500.0,0.00027208,2]
[315040938,1708758633944,-246.16052105,0.00027211,2]
[315040939,1708758633953,-153.3548284,0.00027214,2]
[315040940,1708758633962,-150.0,0.00027215,2]
[315040941,1708758633971,-150.0,0.00027219,2]
[315040942,1708758633980,-1500.0,0.00027221,2]
[315040943,1708758633990,-150.0,0.00027221,2]
[315040944,1708758633999,-150.0,0.00027225,2]
[315040945,1708758634008,-150.0,0.00027226,2]
[315040946,1708758634017,-1500.0,0.00027228,2]
[315040947,1708758634027,-150.0,0.00027229,2]
[315040948,1708758634040,-150.0,0.00027231,2]
[315040949,1708758634050,-150.0,0.00027231,2]
[315040950,1708758634059,-1500.0,0.00027234,2]
[315040951,1708758634069,-150.0,0.00027235,2]
[315040952,1708758634079,-150.0,0.00027249,2]
[315040953,1708758634088,-150.0,0.00027249,2]
[315040954,1708758634101,-150.0,0.00027251,2]
[315040955,1708758634111,-938.52736995,0.00027254,2]
[315040956,1708758634122,-150.0,0.00027254,2]
[315040957,1708758634132,-331.78836325,0.00027255,2]
[315040958,1708758634141,-150.0,0.00027255,2]
[315040959,1708758634151,-1500.0,0.00027258,2]
[315040960,1708758634161,-150.0,0.0002726,2]
[315040961,1708758634170,-150.0,0.00027264,2]
[315040962,1708758634179,-150.0,0.00027265,2]
[315040963,1708758634189,-200000.0,0.00027265,2]
[315040964,1708758634199,-300.0,0.00027266,2]
[315040965,1708758634208,-1500.0,0.00027271,2]
[315040966,1708758634218,-150.0,0.00027272,2]
[315040967,1708758634227,-150.0,0.00027282,2]
[315040968,1708758634236,-150.0,0.00027285,2]
[315040969,1708758634245,-150.0,0.00027287,2]
[315040970,1708758634255,-30723.0,0.00027288,2]
[315040971,1708758634265,-331.78836325,0.00027288,2]
[315040972,1708758634274,-1500.0,0.0002729,2]
[315040973,1708758634283,-150.0,0.00027291,2]
[315040974,1708758634292,-1574583.58300758,0.00027294,2]
[315040975,1708758634320,-3459.30250167,0.00027294,2]
[315040976,1708758634341,-841.80222845,0.00027294,2]
[315040977,1708758634360,-353.62981947,0.00027294,2]
[315040978,1708758634371,-1778.08920812,0.00027294,2]
[315040979,1708758634395,-857.74670121,0.00027294,2]
[315040980,1708758637825,-2615.09,0.00024312,2]
[315040981,1708758637836,-282.54138096,0.00027,2]
[315040982,1708758637846,-30994.4517413,0.00027294,2]
[315040983,1708758638908,-1349.1513692,0.00027294,2]
[315040984,1708758638965,-11414.05518606,0.00027294,2]
[315040985,1708758639023,-28146.25369157,0.00027294,2]
[315040991,1708758640417,-391.76,0.00027196,2]
[315040992,1708758640430,-974.18928161,0.00027196,2]
[315040993,1708758640439,-795.29812288,0.00027294,2]
[315040994,1708758640451,-312.52609998,0.00027294,2]
[315040995,1708758640463,-848.02444771,0.00027294,2]
[315040996,1708758640475,-16723.29576773,0.00027294,2]
[315040997,1708758640486,-7647.18471523,0.00027294,2]
[315040998,1708758640510,-2359.29189622,0.00027294,2]
[315040999,1708758640522,-825.28,0.00027294,2]
[315041000,1708758640533,-756.131,0.00027294,2]
[315041001,1708758640544,-315.6,0.00027294,2]
[315041002,1708758640675,-49996.24996261,0.00027294,2]
[315041003,1708758640686,-1317.35904648,0.00027294,2]
[315041004,1708758640698,-461.74,0.00027294,2]
[315041005,1708758641349,-14035.75786681,0.00027294,2]
[315041013,1708758644057,-159.19865886,0.00027293,2]
[315041014,1708758644067,-1260.90477113,0.00027294,2]
[315041015,1708758644078,-2499.40594227,0.00027294,2]
[315041016,1708758644177,-450.0,0.00027294,2]
[315041017,1708758644188,-7793.53575,0.00027294,2]
[315041018,1708758644237,-5378.256931,0.00027294,2]
[315041019,1708758644249,-497.0379625,0.00027294,2]
[315041020,1708758644260,-966562.25360866,0.00027294,2]
[315041021,1708758644272,-274.27973028,0.00027294,2]
[315041022,1708758644282,-2933.96801709,0.00027294,2]
[315041023,1708758644300,-1555.20113135,0.000233,2]
[315041026,1708758645821,-376.79886865,0.000233,2]
[315041027,1708758645831,-1365.94928159,0.00027247,2]
[315041028,1708758645840,-49274.33854393,0.00027294,2]
[315041029,1708758645879,-5198.0,0.00027294,2]
[315041030,1708758645890,-1219.36340046,0.00027294,2]
[315041031,1708758645901,-758.93714562,0.00027294,2]
[315041032,1708758645990,-1425.57473825,0.00027294,2]
[315041033,1708758646122,-945.31305518,0.00027294,2]
[315041034,1708758646134,-1324.8,0.00027294,2]
[315041035,1708758646154,-1959.99715233,0.00027294,2]
[315041036,1708758646181,-1217.21649949,0.00027294,2]
[315041037,1708758646193,-22839.86020579,0.00027294,2]
[315041038,1708758646240,-500.62895699,0.00027294,2]
[315041039,1708758729166,987.27,0.00026846,20]
[315041041,1708759006253,198.85,0.00025256,120]
[315041042,1708759708106,53696.7934507,0.00029,120]
[315041058,1708759838006,-204.48263457,0.00022722,2]
[315041059,1708759838016,-364.74675334,0.00022723,2]
[315041060,1708759838025,-170.28915195,0.00022823,2]
[315041061,1708759838035,-940.3,0.00022923,2]
[315041062,1708759838045,-787.87,0.00023322,2]
[315041063,1708759838054,-200.0,0.00023615,2]
[315041064,1708759838063,-170.28915195,0.00024115,2]
[315041065,1708759838073,-467.35,0.00024148,2]
[315041066,1708759838082,-250.0,0.00024171,2]
[315041067,1708759838092,-894.94,0.00024189,2]
[315041068,1708759838101,-300.0,0.00024212,2]
[315041069,1708759838110,-150.0,0.00024212,2]
[315041070,1708759838119,-150.0,0.00024212,2]
[315041071,1708759838129,-150.0,0.00024212,2]
[315041072,1708759838138,-6883.72674961,0.00024213,2]
[315041073,1708759838179,-17016.27325039,0.00024213,2]
[315041074,1708759838188,-9999.99,0.00024213,2]
[315041075,1708759838198,-150.99,0.00024213,2]
[315041076,1708759838209,-3088.26,0.00024215,2]
[315041077,1708759838219,-165.9,0.00024215,2]
[315041078,1708759838230,-63559.24,0.00024215,2]
[315041079,1708759838240,-683.75,0.00024215,2]
[315041080,1708759838251,-7091.91,0.00024215,2]
[315041081,1708759838262,-150.0,0.00024219,2]
[315041082,1708759838272,-499.99,0.00024219,2]
[315041083,1708759838282,-773.73,0.00024219,2]
[315041084,1708759838291,-3020.47,0.00024219,2]
[315041085,1708759838301,-1486.84,0.00024219,2]
[315041086,1708759838311,-383.35,0.00024219,2]
[315041087,1708759838321,-152.56,0.00024223,2]
[315041088,1708759838330,-2713.77,0.00024223,2]
[315041090,1708759838340,-2000.0,0.00024233,2]
[315041093,1708759838349,-538.7389781,0.00024492,2]
[315041095,1708759838358,-481575.15786128,0.00024591,2]
[315041097,1708759838367,-481575.15786128,0.00024591,2]
[315041099,1708759838376,-361.48558138,0.00024592,2]
[315041101,1708759838385,-222555.0,0.00024593,2]
[315041103,1708759838395,-239.26361747,0.00024796,2]
[315041105,1708759838404,-152.56,0.00024828,2]
[315041107,1708759838417,-682.53497964,0.0002486,2]
[315041109,1708759838426,-250.0,0.00024861,2]
[315041111,1708759838436,-212.13,0.0002487,2]
[315041113,1708759838445,-239.2636174,0.00024903,2]
[315041115,1708759838454,-165.83,0.00024941,2]
[315041117,1708759838464,-1120.11,0.0002496,2]
[315041119,1708759838473,-750.0,0.00025,3]
[315041121,1708759838482,-239.2636174,0.0002501,2]
[315041123,1708759838492,-200.0,0.00025014,4]
[315041125,1708759838502,-964.27,0.0002511,2]
[315041127,1708759838511,-239.2636174,0.00025116,2]
[315041129,1708759838520,-790.83,0.00025141,2]
[315041131,1708759838529,-682.53497963,0.00025181,2]
[315041133,1708759838538,-940.3,0.00025187,2]
[315041135,1708759838547,-239.2636174,0.00025223,2]
[315041137,1708759838556,-239.2636174,0.0002533,2]
[315041139,1708759838566,-1000.0,0.00025355,2]
[315041142,1708759838575,-152.56,0.00025434,2]
[315041144,1708759838586,-239.2636174,0.00025437,2]
[315041146,1708759838595,-191.06,0.0002544,2]
[315041148,1708759838604,-151.022416,0.00025498,2]
[315041149,1708759838613,-151.022416,0.00025498,2]
[315041152,1708759838624,-151.022416,0.00025498,2]
[315041154,1708759838633,-151.022416,0.00025498,2]
[315041155,1708759838643,-151.022416,0.00025498,2]
[315041158,1708759838652,-151.022416,0.00025498,2]
[315041159,1708759838662,-682.53497963,0.00025501,2]
[315041161,1708759838671,-974.41941325,0.00025501,2]
[315041164,1708759838680,-2500.0,0.00025501,2]
[315041166,1708759838689,-180.0624482,0.00025502,2]
[315041168,1708759838699,-164.00101499,0.00025502,2]
[315041170,1708759838708,-239.2636174,0.00025544,2]
[315041172,1708759838717,-197.64793243,0.0002555,2]
[315041174,1708759838726,-150.0,0.00025586,2]
[315041176,1708759838735,-988.31737057,0.000256,2]
[315041177,1708759838744,-239.2636174,0.0002565,2]
[315041180,1708759838754,-166.86,0.0002566,2]
[315041182,1708759838763,-756.98,0.0002568,2]
[315041183,1708759838773,-239.2636174,0.00025757,2]
[315041186,1708759838782,-538.73897809,0.00025793,2]
[315041188,1708759838791,-33892.0831,0.00025794,2]
[315041190,1708759838802,-974.41941325,0.00025804,2]
[315041192,1708759838811,-756.98,0.00025815,2]
[315041194,1708759838820,-49999.99,0.00025823,2]
[315041196,1708759838829,-531.48,0.00025823,2]
[315041197,1708759838838,-239.2636174,0.00025864,2]
[315041199,1708759838847,-177.78,0.00025925,2]
[315041201,1708759838856,-756.98,0.0002595,2]
[315041203,1708759838865,-150.0,0.00025956,2]
[315041205,1708759838874,-150.0,0.00025961,2]
[315041207,1708759838884,-197.64793243,0.00025963,2]
[315041210,1708759838894,-239.2636174,0.00025971,2]
[315041211,1708759838904,-12427.1338923,0.00026,2]
[315041214,1708759838913,-152.56,0.00026039,2]
[315041216,1708759838923,-239.2636174,0.00026077,2]
[315041218,1708759838932,-150.0,0.00026079,2]
[315041220,1708759838943,-756.98,0.00026085,2]
[315041222,1708759838952,-974.41941325,0.00026107,3]
[315041224,1708759838961,-159.02,0.0002611,2]
[315041226,1708759838970,-200.0,0.00026157,2]
[315041228,1708759838979,-239.2636174,0.00026184,2]
[315041229,1708759838988,-159.02,0.00026211,2]
[315041231,1708759838997,-756.98,0.0002622,2]
[315041232,1708759839007,-787.87,0.00026238,2]
[315041234,1708759839016,-420.0,0.00026251,2]
[315041236,1708759839025,-239.2636174,0.00026291,2]
[315041238,1708759839034,-150.0,0.00026293,2]
[315041240,1708759839043,-150.0,0.00026293,10]
[315041242,1708759839052,-150.0,0.00026298,2]
[315041244,1708759839061,-150.0,0.000263,2]
[315041246,1708759839070,-159.02,0.00026313,2]
[315041248,1708759839079,-756.98,0.00026356,2]
[315041250,1708759839088,-272.0,0.00026371,2]
[315041252,1708759839097,-332.0,0.00026371,2]
[315041254,1708759839107,-197.64793243,0.00026375,2]
[315041256,1708759839116,-500.0,0.00026384,2]
[315041258,1708759839125,-500.0,0.00026384,2]
[315041260,1708759839134,-500.0,0.00026384,2]
[315041262,1708759839143,-500.0,0.00026384,2]
[315041264,1708759839152,-500.0,0.00026384,2]
[315041266,1708759839161,-500.0,0.00026384,2]
[315041267,1708759839170,-230.35,0.00026384,2]
[315041268,1708759839178,-239.2636174,0.00026398,2]
[315041269,1708759839187,-974.41941325,0.0002641,3]
[315041270,1708759839196,-200.0,0.00026414,6]
[315041271,1708759839204,-159.02,0.00026414,2]
[315041272,1708759839213,-177.78,0.00026473,2]
[315041273,1708759839223,-756.98,0.00026491,2]
[315041274,1708759839231,-548215.97859098,0.000265,2]
[315041275,1708759839240,-239.2636174,0.00026505,2]
[315041276,1708759839249,-159.02,0.00026516,2]
[315041277,1708759839257,-1120.11,0.00026604,2]
[315041278,1708759839266,-239.2636174,0.00026611,2]
[315041279,1708759839275,-159.02,0.00026617,2]
[315041280,1708759839284,-756.98,0.00026626,2]
[315041281,1708759839293,-210.0,0.00026634,2]
[315041282,1708759839302,-210.0,0.00026634,2]
[315041283,1708759839310,-210.0,0.00026634,2]
[315041284,1708759839319,-152.56,0.00026645,2]
[315041286,1708759839328,-974.41941325,0.00026713,3]
[315041288,1708759839337,-239.2636174,0.00026718,2]
[315041289,1708759839346,-756.98,0.00026761,2]
[315041291,1708759839355,-197.64793243,0.00026788,2]
[315041294,1708759839365,-1897.62833096,0.00026825,2]
[315041296,1708759839374,-1897.62833096,0.00026825,2]
[315041297,1708759839383,-1415.6819,0.00026825,2]
[315041300,1708759839393,-2513.7318,0.00026825,2]
[315041302,1708759839402,-176.22606532,0.00026825,2]
[315041304,1708759839411,-239.2636174,0.00026825,2]
[315041306,1708759839425,-150.0,0.00026846,2]
[315041308,1708759839434,-824.62,0.00026849,2]
[315041310,1708759839443,-406.47,0.00026849,2]
[315041312,1708759839452,-1799.9,0.00026849,2]
[315041314,1708759839462,-756.98,0.00026896,2]
[315041316,1708759839471,-150.0,0.00026901,2]
[315041318,1708759839479,-1647732.4506478,0.00026925,4]
[315041373,1708759839973,-66001.55312226,0.00026925,4]
[315041517,1708759841334,-65372.13389793,0.00026925,4]
[315041519,1708759841346,-1019.18,0.00026925,4]
[315041524,1708759841501,-73020.94841631,0.00026925,4]
[315041530,1708759843172,-1089.17831716,0.00026925,4]
[315041531,1708759843185,-2725.02452431,0.00026925,4]
[315041532,1708759843198,-26730.68845572,0.00026925,4]
[315041533,1708759843228,-166386.13103751,0.00026925,4]
[315041534,1708759843241,-142162.6579649,0.00026925,4]
[315041535,1708759843251,-1000.0,0.00026925,2]
[315041536,1708759843262,-1321.9165,0.00026925,2]
[315041537,1708759843271,-500.10780166,0.00026937,2]
[315041538,1708759843280,-150.0,0.00026956,2]
[315041539,1708759843290,-377.00699696,0.00026967,2]
[315041540,1708759843299,-350.58040716,0.00026967,2]
[315041541,1708759843308,-191.19225238,0.00026967,2]
[315041542,1708759843317,-165.83,0.00027,2]
[315041543,1708759843329,-800.0,0.00027,3]
[315041544,1708759843340,-500.10780166,0.00027015,2]
[315041545,1708759843349,-974.41941325,0.00027016,3]
[315041546,1708759843358,-177.78,0.00027021,2]
[315041547,1708759843367,-150.0,0.00027029,2]
[315041548,1708759843378,-756.98,0.00027031,2]
[315041549,1708759843387,-282.54138096,0.00027064,2]
[315041550,1708759843396,-312689.51658108,0.00027064,2]
[315041551,1708759843412,-5944.74765243,0.00027064,2]
[315041552,1708759843424,-3642.42915054,0.00027064,2]
[315041553,1708759843435,-996.73170621,0.00027064,2]
[315041554,1708759843447,-523.9579497,0.00027064,2]
[315041558,1708759906964,974.42,0.00021405,2]
[315041559,1708760073048,-179.81,0.00023322,2]
[315041560,1708760073082,-2000.0,0.00023322,2]
[315041561,1708760073110,-158.12044446,0.0002361,2]
[315041562,1708760073122,-179.81,0.0002361,2]
[315041563,1708760073132,-144.32911108,0.0002361,2]
[315041564,1708760073141,-1212.77909687,0.00023611,2]
[315041565,1708760073150,-209.0,0.00023615,2]
[315041566,1708760073159,-433.89179205,0.00023669,2]
[315041567,1708760073174,-482.25955554,0.00023669,2]
[315041568,1708760140767,-204.48263457,0.00023204,2]
[315041569,1708760140799,-1128.283581,0.00023205,2]
[315041570,1708760140824,-204.48263457,0.00023321,2]
[315041571,1708760140845,-1128.283581,0.00023321,2]
[315041572,1708760140862,-6134.46756886,0.00023321,2]
[315041574,1708760188882,177.78,0.00022321,2]
[315041575,1708760437820,299.99,0.00023497,7]
[315041576,1708760833489,177.78,0.00022318,2]
[315041597,1708761032190,-765.12448514,0.00022494,2]
[315041599,1708761032200,-51.97486104,0.00022495,2]
[315041600,1708761032211,-152.50777353,0.00022495,2]
[315041601,1708761032221,-544.01752652,0.00022498,2]
[315041602,1708761032233,-335.87247348,0.00022498,2]
[315041603,1708761032242,-220.05178756,0.00022619,2]
[315041604,1708761032251,-177.78,0.00022866,2]
[315041605,1708761032261,-152.30559775,0.0002322,2]
[315041606,1708761032270,-1.9601412,0.00023311,2]
[315041607,1708761032302,-1183.64619781,0.00023311,2]
[315041608,1708761032341,-2271.04123518,0.00023311,2]
[315041609,1708761032351,-300.0,0.00023317,2]
[315041610,1708761032361,-150.0,0.00023317,2]
[315041611,1708761032370,-253.0,0.00023317,2]
[315041612,1708761032379,-54741.24995187,0.00023318,2]
[315041613,1708761032388,-5745.23304208,0.00023319,2]
[315041614,1708761032397,-1281.66,0.00023319,2]
[315041615,1708761032407,-2787.07110974,0.0002332,2]
[315041616,1708761032416,-1006.51246706,0.0002332,2]
[315041617,1708761032425,-7338.53,0.0002332,2]
[315041618,1708761032434,-499.99,0.00023321,2]
[315041619,1708761032444,-177.78,0.00023414,2]
[315041620,1708761032452,-999.99,0.00023626,2]
[315041621,1708761032462,-177.78,0.00023962,2]
[315041622,1708761032470,-472.73,0.00023995,2]
[315041623,1708761032480,-823.12,0.00023995,2]
[315041624,1708761032491,-176.9,0.00024022,2]
[315041625,1708761032501,-341.55,0.00024175,2]
[315041626,1708761032510,-341.55,0.00024241,2]
[315041627,1708761032520,-162.33,0.00024245,2]
[315041628,1708761032531,-341.55,0.00024307,2]
[315041629,1708761032542,-2000.0,0.00024346,2]
[315041630,1708761032552,-198.85,0.00024354,2]
[315041631,1708761032561,-341.55,0.00024374,2]
[315041632,1708761032571,-183.54,0.00024384,2]
[315041634,1708761032582,-341.55,0.0002444,2]
[315041636,1708761032591,-179.81,0.00024489,2]
[315041638,1708761032599,-341.55,0.00024506,2]
[315041640,1708761032609,-177.78,0.0002451,2]
[315041642,1708761032618,-527.27,0.00024539,2]
[315041644,1708761032627,-186.74,0.00024539,2]
[315041646,1708761032636,-5043.66,0.00024539,2]
[315041648,1708761032645,-161.81,0.00024539,2]
[315041650,1708761032654,-160.62,0.00024539,2]
[315041652,1708761032663,-23900.0,0.00024539,2]
[315041654,1708761032672,-250.0,0.00024539,2]
[315041656,1708761032682,-341.87,0.00024539,2]
[315041658,1708761032692,-162.57,0.00024539,2]
[315041660,1708761032701,-2615.09,0.00024539,2]
[315041662,1708761032710,-341.55,0.00024573,2]
[315041664,1708761032719,-341.55,0.00024639,2]
[315041666,1708761032728,-250.0,0.00024658,2]
[315041668,1708761032737,-1500.0,0.00024658,3]
[315041670,1708761032746,-500.0,0.00024658,2]
[315041671,1708761032755,-200.0,0.00024685,2]
[315041672,1708761032763,-341.55,0.00024705,2]
[315041673,1708761032773,-879.89,0.00024761,2]
[315041674,1708761032784,-341.55,0.00024771,2]
[315041675,1708761032794,-200.0,0.00024813,2]
[315041676,1708761032802,-341.55,0.00024838,2]
[315041677,1708761032811,-160.62,0.0002489,2]
[315041678,1708761032821,-341.55,0.00024904,2]
[315041679,1708761032830,-341.55,0.0002497,2]
[315041680,1708761032840,-341.55,0.00025037,2]
[315041681,1708761032850,-177.78,0.00025058,2]
[315041682,1708761032860,-341.55,0.00025103,2]
[315041683,1708761032869,-341.55,0.00025169,2]
[315041684,1708761032878,-1154.10980387,0.00025189,2]
[315041685,1708761032887,-341.55,0.00025236,2]
[315041686,1708761032896,-160.62,0.0002524,2]
[315041687,1708761032906,-341.55,0.00025302,2]
[315041688,1708761032915,-341.55,0.00025368,2]
[315041689,1708761032924,-341.55,0.00025434,2]
[315041690,1708761032933,-160.62,0.00025591,2]
[315041691,1708761032943,-225.0,0.00025599,2]
[315041692,1708761032953,-177.78,0.00025606,2]
[315041693,1708761032963,-823.12,0.00025639,2]
[315041694,1708761032973,-210.0,0.00025649,2]
[315041695,1708761032983,-179.81,0.00025655,2]
[315041696,1708761032994,-19999.99,0.00025786,2]
[315041697,1708761033004,-1080.47,0.00025786,2]
[315041698,1708761033013,-17591.91,0.00025786,2]
[315041699,1708761033023,-3093.77,0.00025786,2]
[315041700,1708761033033,-1876.91,0.00025786,2]
[315041701,1708761033042,-160.62,0.00025941,2]
[315041702,1708761033052,-3000.0,0.00026,2]
[315041703,1708761033061,-176.9,0.00026005,2]
[315041704,1708761033071,-150.0,0.00026079,2]
[315041705,1708761033080,-291.58774355,0.00026088,2]
[315041706,1708761033091,-177.78,0.00026154,2]
[315041707,1708761033100,-200.0,0.00026279,4]
[315041708,1708761033109,-181.70070823,0.00026281,2]
[315041709,1708761033118,-250.0,0.0002629,2]
[315041710,1708761033128,-160.62,0.00026292,2]
[315041711,1708761033137,-150.0,0.00026298,2]
[315041712,1708761033146,-1154.10980387,0.00026392,2]
[315041713,1708761033156,-4771.5197,0.00026392,2]
[315041714,1708761033165,-22103.6443,0.00026392,2]
[315041715,1708761033174,-500.0,0.00026397,2]
[315041716,1708761033183,-500.0,0.00026397,2]
[315041717,1708761033192,-500.0,0.00026397,2]
[315041718,1708761033202,-500.0,0.00026397,2]
[315041719,1708761033211,-500.0,0.00026397,2]
[315041720,1708761033221,-500.0,0.00026397,2]
[315041721,1708761033230,-500.0,0.00026397,2]
[315041722,1708761033239,-500.0,0.00026397,2]
[315041723,1708761033249,-500.0,0.00026397,2]
[315041724,1708761033258,-500.0,0.00026397,2]
[315041725,1708761033267,-500.0,0.00026397,2]
[315041726,1708761033276,-500.0,0.00026397,2]
[315041727,1708761033285,-500.0,0.00026397,2]
[315041728,1708761033294,-524.26,0.00026397,2]
[315041729,1708761033304,-500.0,0.00026397,2]
[315041730,1708761033313,-500.0,0.00026397,2]
[315041731,1708761033322,-500.0,0.00026397,2]
[315041732,1708761033331,-500.0,0.00026397,2]
[315041733,1708761033341,-500.0,0.00026397,2]
[315041734,1708761033350,-500.0,0.00026397,2]
[315041735,1708761033359,-500.0,0.00026397,2]
[315041736,1708761033369,-500.0,0.00026397,2]
[315041737,1708761033377,-500.0,0.00026397,2]
[315041738,1708761033386,-303.64,0.00026397,2]
[315041739,1708761033395,-17886.798,0.00026492,2]
[315041740,1708761033405,-2439.3538,0.00026492,2]
[315041741,1708761033415,-323.1743,0.00026492,2]
[315041742,1708761033425,-4360.5651,0.00026492,2]
[315041743,1708761033435,-151.022416,0.00026498,2]
[315041744,1708761033445,-151.022416,0.00026498,2]
[315041745,1708761033454,-151.022416,0.00026498,2]
[315041746,1708761033463,-151.022416,0.00026498,2]
[315041747,1708761033472,-151.022416,0.00026498,2]
[315041748,1708761033481,-151.022416,0.00026498,2]
[315041749,1708761033490,-151.022416,0.00026498,2]
[315041750,1708761033499,-151.022416,0.00026498,2]
[315041751,1708761033508,-151.022416,0.00026498,2]
[315041752,1708761033518,-250.0,0.00026564,2]
[315041753,1708761033526,-160.62,0.00026642,2]
[315041754,1708761033537,-162.33,0.0002667,2]
[315041755,1708761033546,-253.0,0.00026671,2]
[315041756,1708761033557,-308.0,0.00026671,2]
[315041757,1708761033567,-177.78,0.00026702,2]
[315041758,1708761033576,-180.14514158,0.00026793,2]
[315041759,1708761033586,-250.0,0.00026838,2]
[315041760,1708761033598,-405.17,0.00026849,2]
[315041761,1708761033610,-416.75650142,0.00026863,2]
[315041762,1708761033620,-176.22606532,0.00026863,2]